{"text_format":"1","workbook":"xlsx","n_sheets":1,"sheets":["2"],"not_rendered":{"charts":0,"images":0,"macros":1,"external_links":0,"defined_names":180,"comments":0,"pivot_tables":0},"unopened":[],"bounds":{"document_bytes":16777216,"sheet_cells":100000,"rows_first":2000,"rows_last":500,"rows_between":2000,"halvings":0,"cell_chars":16384,"cell_head_chars":4096},"cells_cut":0,"cells_raw":0,"read":"whole","date_system":"1900"}

{"sheet":"2","index":0,"n_rows":130,"n_cols":5,"rows_kept":130,"cut":false,"hidden":false,"merged":[[0,2,0,4],[1,2,1,4],[7,1,7,2],[3,0,3,3],[4,2,4,3],[5,0,6,0],[5,1,6,2],[5,3,5,4]]}
[null,null,"Приложение 2                                   к решению Думы Балаганского района        \"О внесении изменений в решение Думы Балаганского района от 23.12.2022 года №9/2-РД \"О бюджете муниципального образования Балаганский район на 2023 год и на плановый период 2024 и 2025 годов\"                                                                   от    08.02.2023г. №1/2-РД"]
[null,null,"\"Приложение 2                                  к решению Думы Балаганского района                            \"О бюджете муниципального образования Балаганский район на 2023 год и на плановый период 2024 и 2025 годов\"                                 от 23.12.2022 г. №9/2-РД"]
[]
["ПРОГНОЗИРУЕМЫЕ ДОХОДЫ БЮДЖЕТА МУНИЦИПАЛЬНОГО ОБРАЗОВАНИЯ БАЛАГАНСКИЙ РАЙОН НА ПЛАНОВЫЙ ПЕРИОД 2024 И 2025 ГОДОВ"]
[null,null,null,null,"тыс. рублей"]
[" Наименование ","Код бюджетной классификации Российской Федерации",null,"                          Сумма"]
[null,null,null,"2024г.","2025г."]
[1,2,null,3,4]
["НАЛОГОВЫЕ И НЕНАЛОГОВЫЕ ДОХОДЫ","000","10000000000000000",{"$f":"D10+D16+D28+D31+D44+D49+D55+D59","v":56163.999999999993},{"$f":"E10+E16+E28+E31+E44+E49+E55+E59","v":56273.9}]
["НАЛОГИ НА ПРИБЫЛЬ, ДОХОДЫ","182","10100000000000000",{"$f":"D11","v":39380},{"$f":"E11","v":39385}]
["Налог на доходы физических лиц","182","10102000010000110",{"$f":"D12+D13+D14+D15","v":39380},{"$f":"E12+E13+E14+E15","v":39385}]
["Налог на доходы физических лиц с доходов, источником которых является налоговый агент, за исключением доходов, в отношении которых исчисление и уплата налога осуществляются в соответствии со статьями 227, 227.1 и 228  Налогового кодекса Российской Федерации","182","10102010010000110",39060,39060]
["Налог на доходы физических лиц с доходов,  полученных от осуществления деятельности физическими лицами, зарегистрированными в качестве индивидуальных предпринимателей, нотариусов, занимающихся частной практикой, адвокатов, учредивших адвокатские кабинеты и других лиц, занимающихся частной практикой в соответствии со статей 227 Налогового кодекса Российской Федерации","182","10102020010000110",40,40]
["Налог на доходы физических лиц с доходов, полученных физическими лицами в соответствии со статьей 228 Налогового кодекса Российской Федерации","182","10102030010000110",190,190]
["Налог на доходы физических лиц в виде фиксированных авансовых платежей с доходов, полученных физическими лицами, являющимися иностранными гражданами, осуществляющими трудовую деятельность по найму на основании патента в соответствии со статьей 227.1 Налогового кодекса Российской Федерации","182","10102040010000110",90,95]
["НАЛОГИ НА СОВОКУПНЫЙ ДОХОД","182","10500000000000000",{"$f":"D24+D26+D17","v":7237},{"$f":"E24+E26+E17","v":7343}]
["Налог, взимаемый в связи с применением упрощенной системы налогообложения","182","10501000000000110",{"$f":"D18+D20","v":4500},{"$f":"E18+E20","v":4500}]
["Налог, взимаемый с налогоплательщиков, выбравших в качестве объекта налогообложения доходы","182","10501010010000110",{"$f":"D19","v":3700},{"$f":"E19","v":3700}]
["Налог, взимаемый с налогоплательщиков, выбравших в качестве объекта налогообложения доходы","182","10501011010000110",3700,3700]
["Налог, взимаемый с налогоплательщиков, выбравших в качестве объекта налогообложения доходы, уменьшенные на величину расходов","182","10501020010000110",{"$f":"D21","v":800},{"$f":"E21","v":800}]
["Налог, взимаемый с налогоплательщиков, выбравших в качестве объекта налогообложения доходы, уменьшенные на величину расходов (в том числе минимальный налог, зачисляемый в бюджеты субъектов Российской Федерации)","182","10501021010000110",800,800]
["Единый налог на вмененный доход для отдельных видов деятельности","182","10502000020000110",{"$f":"D23","v":0},{"$f":"E23","v":0}]
["Единый налог на вмененный доход для отдельных видов деятельности","182","10502010020000110",0,0]
["Налог, взимаемый в связи с применением патентной системы налогообложения","182","10504000020000110",{"$f":"D25","v":2700},{"$f":"E25","v":2800}]
["Налог, взимаемый в связи с применением патентной системы налогообложения, зачисляемый в бюджеты муниципальных районов ","182","10504020020000110",2700,2800]
["Единый сельскохозяйственный налог","182","10503000010000110",{"$f":"D27","v":37},{"$f":"E27","v":43}]
["Единый сельскохозяйственный налог","182","10503010010000110",37,43]
["ГОСУДАРСТВЕННАЯ ПОШЛИНА","182","10800000000000000",{"$f":"D29","v":830.7},{"$f":"E29","v":829.3}]
["Государственная пошлина по делам, рассматриваемым в судах общей юрисдикции, мировыми судьями","182","10803000010000110",{"$f":"D30","v":830.7},{"$f":"E30","v":829.3}]
["Государственная пошлина по делам, рассматриваемым в судах общей юрисдикции, мировыми судьями (за исключением Верховного Суда Российской Федерации)","182","10803010010000110",830.7,829.3]
["ДОХОДЫ ОТ ИСПОЛЬЗОВАНИЯ ИМУЩЕСТВА, НАХОДЯЩЕГОСЯ В ГОСУДАРСТВЕННОЙ И МУНИЦИПАЛЬНОЙ СОБСТВЕННОСТИ","000","11100000000000000",{"$f":"D32+D39+D41","v":1559.2},{"$f":"E32+E39+E41","v":1559.2}]
["Доходы, получаемые в виде арендной либо иной платы за передачу в возмездное пользование государственного и муниципального имущества (за исключением имущества бюджетных и автономных учреждений, а также имущества государственных и муниципальных унитарных предприятий, в том числе казенных)","994","11105000000000120",{"$f":"D33+D35+D37","v":1508.5},{"$f":"E33+E35+E37","v":1508.5}]
["Доходы, получаемые в виде арендной платы за земельные участки, государственная собственность на которые не разграничена, а также средства от продажи права на заключение договоров аренды указанных земельных участков","994","11105010000000120",{"$f":"D34","v":1300},{"$f":"E34","v":1300}]
["Доходы, получаемые в виде арендной платы за земельные участки, государственная собственность на которые не разграничена и которые расположены в границах сельских поселений и межселенных территорий муниципальных районов, а также средства от продажи права на заключение договоров аренды указанных земельных участков","994","11105013050000120",1300,1300]
["Доходы от сдачи в аренду имущества, находящегося в оперативном управлении органов государственной власти, органов местного самоуправления, органов управления государственными внебюджетными фондами и созданных ими учреждений (за исключением имущества бюджетных и автономных учреждений)","994","11105030000000120",{"$f":"D36","v":126.5},{"$f":"E36","v":126.5}]
["Доходы от сдачи в аренду имущества, находящегося в оперативном управлении органов управления муниципальных районов и созданных ими учреждений (за исключением имущества муниципальных бюджетных и автономных учреждений)","994","11105035050000120",126.5,126.5]
["Доходы от сдачи в аренду имущества, составляющего государственную (муниципальную) казну (за исключением земельных участков)","994","11105070000000120",{"$f":"D38","v":82},{"$f":"E38","v":82}]
["Доходы от сдачи в аренду имущества, составляющего казну муниципальных районов (за исключением земельных участков)","994","11105075050000120",82,82]
["Платежи от государственных и муниципальных унитарных предприятий","994","11107000000000120",{"$f":"D40","v":35.700000000000003},{"$f":"E40","v":35.700000000000003}]
["Доходы от перечисления части прибыли, остающейся после уплаты налогов и иных обязательных платежей муниципальных унитарных предприятий, созданных муниципальными районами","994","11107015050000120",35.700000000000003,35.700000000000003]
["Прочие доходы от использования имущества и прав, находящихся в государственной и муниципальной собственности (за исключением имущества бюджетных и автономных учреждений, а также имущества государственных и муниципальных унитарных предприятий, в том числе казенных)","994","11109000000000120",{"$f":"D43","v":15},{"$f":"E43","v":15}]
["Прочие поступления от использования имущества, находящегося в государственной и муниципальной собственности (за исключением имущества бюджетных и автономных учреждений, а также имущества государственных и муниципальных унитарных предприятий, в том числе казенных)","994","11109040000000120",15,15]
["Прочие поступления от использования имущества, находящегося в собственности муниципальных районов (за исключением имущества муниципальных бюджетных и автономных учреждений, а также имущества муниципальных унитарных предприятий, в том числе казенных)","994","11109045050000120",15,15]
["ПЛАТЕЖИ ПРИ ПОЛЬЗОВАНИИ ПРИРОДНЫМИ РЕСУРСАМИ","048","11200000000000000",{"$f":"D45","v":2.5},{"$f":"E45","v":2.6}]
["Плата за негативное воздействие на окружающую среду","048","11201000010000120",{"$f":"SUM(D46:D48)","v":2.5},{"$f":"SUM(E46:E48)","v":2.6}]
["Плата за выбросы загрязняющих веществ в атмосферный воздух стационарными объектами ","048","11201010010000120",2.5,2.6]
["Плата за сбросы загрязняющих веществ в водные объекты","048","11201030010000120",0,0]
["Плата за размещение отходов производства","048","11201041010000120",0,0]
["ДОХОДЫ ОТ ОКАЗАНИЯ ПЛАТНЫХ УСЛУГ И КОМПЕНСАЦИИ ЗАТРАТ ГОСУДАРСТВА","000","11300000000000000",{"$f":"D50","v":6046.5000000000009},{"$f":"E50","v":6046.5000000000009}]
["Доходы от оказания платных услуг (работ) ","000","11301000000000130",{"$f":"D51","v":6046.5000000000009},{"$f":"E51","v":6046.5000000000009}]
["Прочие доходы от оказания платных услуг (работ)получателями средств бюджетов муниципальных районов ","000","11301995050000130",{"$f":"SUM(D52:D54)","v":6046.5000000000009},{"$f":"SUM(E52:E54)","v":6046.5000000000009}]
["Прочие доходы от оказания платных услуг (работ)получателями средств бюджетов муниципальных районов ","957","11301995050000130",12.8,12.8]
["Прочие доходы от оказания платных услуг (работ) получателями средств бюджетов муниципальных районов ","973","11301995050000130",5802.6,5802.6]
["Прочие доходы от оказания платных услуг (работ) получателями средств бюджетов муниципальных районов ","994","11301995050000130",231.1,231.1]
["ДОХОДЫ ОТ ПРОДАЖИ МАТЕРИАЛЬНЫХ И НЕМАТЕРИАЛЬНЫХ АКТИВОВ","994","11400000000000000",{"$f":"D56","v":77},77]
["Доходы от продажи земельных участков, находящихся в государственной и муниципальной собственности","994","11406000000000430",77,77]
["Доходы от продажи земельных участков, государственная собственность на которые не разграничена","994","11406010000000430",77,77]
["Доходы от продажи земельных участков, государственная собственность на которые не разграничена и которые расположены в границах сельских поселений и межселенных территорий муниципальных районов","994","11406013050000430",77,77]
["ШТРАФЫ, САНКЦИИ, ВОЗМЕЩЕНИЕ УЩЕРБА","000","11600000000000000",{"$f":"D60+D85+D83+D93","v":1031.0999999999999},{"$f":"E60+E85+E83+E93","v":1031.3}]
["Административные штрафы, установленные Кодексом Российской Федерации об административных правонарушениях","000","11601000010000140",{"$f":"D61+D75+D67+D70+D72+D77+D78+D80+D66+D68","v":180.6},{"$f":"E61+E75+E67+E70+E72+E77+E78+E80+E66+E68","v":180.79999999999998}]
["Административные штрафы, установленные Главой 5 Кодекса Российской Федерации об административных правонарушениях, за административные правонарушения, посягающие на права граждан","000","11601050010000140",{"$f":"D62+D63","v":1.9},{"$f":"E62+E63","v":2}]
["Административные штрафы, установленные Главой 5 Кодекса Российской Федерации об административных правонарушениях, за административные правонарушения, посягающие на права граждан, налагаемые мировыми судьями, комиссиями по делам несовершеннолетних и защите их прав","806","11601053010000140",1.7,1.8]
["Административные штрафы, установленные Главой 5 Кодекса Российской Федерации об административных правонарушениях, за административные правонарушения, посягающие на права граждан, налагаемые мировыми судьями, комиссиями по делам несовершеннолетних и защите их прав","837","11601053010000140",0.2,0.2]
["Административные штрафы, установленные главой 6 Кодекса Российской Федерации об административных правонарушениях, за административные правонарушения, посягающие на здоровье, санитарно-эпидемиологическое благополучие населения и общественную нравственность","000","11601060010000140",{"$f":"D65","v":73.900000000000006},{"$f":"E65","v":73.900000000000006}]
["Административные штрафы, установленные главой 6 Кодекса Российской Федерации об административных правонарушениях, за административные правонарушения, посягающие на здоровье, санитарно-эпидемиологическое благополучие населения и общественную нравственность, налагаемые мировыми судьями, комиссиями по делам несовершеннолетних и защите их прав","000","11601063010000140",{"$f":"D66+D67","v":73.900000000000006},{"$f":"E66+E67","v":73.900000000000006}]
["Административные штрафы, установленные главой 6 Кодекса Российской Федерации об административных правонарушениях, за административные правонарушения, посягающие на здоровье, санитарно-эпидемиологическое благополучие населения и общественную нравственность, налагаемые мировыми судьями, комиссиями по делам несовершеннолетних и защите их прав","806","11601063010000140",1,1]
["Административные штрафы, установленные главой 6 Кодекса Российской Федерации об административных правонарушениях, за административные правонарушения, посягающие на здоровье, санитарно-эпидемиологическое благополучие населения и общественную нравственность, налагаемые мировыми судьями, комиссиями по делам несовершеннолетних и защите их прав","837","11601063010000140",72.900000000000006,72.900000000000006]
["Административные штрафы, установленные главой 17 Кодекса Российской Федерации об административных правонарушениях, за административные правонарушения, посягающие на институты государственной власти","837","11601170010000140",{"$f":"D69","v":0.9},{"$f":"E69","v":0.9}]
["Административные штрафы, установленные главой 17 Кодекса Российской Федерации об административных правонарушениях, за административные правонарушения, посягающие на институты государственной власти, налагаемые мировыми судьями, комиссиями по делам несовершеннолетних и защите их прав","837","11601173010000140",0.9,0.9]
["Административные штрафы, установленные главой 8 Кодекса Российской Федерации об административных правонарушениях, за административные правонарушения в области охраны окружающей среды и природопользования","837","11601080010000140",{"$f":"D71","v":10.3},{"$f":"E71","v":10.3}]
["Административные штрафы, установленные главой 8 Кодекса Российской Федерации об административных правонарушениях, за административные правонарушения в области охраны окружающей среды и природопользования, налагаемые мировыми судьями, комиссиями по делам несовершеннолетних и защите их прав","837","11601083010000140",10.3,10.3]
["Административные штрафы, установленные главой 14 Кодекса Российской Федерации об административных правонарушениях, за административные правонарушения в области предпринимательской деятельности и деятельности саморегулируемых организаций","837","11601140010000140",{"$f":"D73","v":0},{"$f":"E73","v":0}]
["Административные штрафы, установленные главой 14 Кодекса Российской Федерации об административных правонарушениях, за административные правонарушения в области предпринимательской деятельности и деятельности саморегулируемых организаций, налагаемые мировыми судьями, комиссиями по делам несовершеннолетних и защите их прав","837","11601143010000140",0,0]
["Административные штрафы, установленные Главой 15 Кодекса Российской Федерации об административных правонарушениях, за административные правонарушения в области финансов, налогов и сборов, страхования, рынка ценных бумаг","837","11601150010000140",{"$f":"D75","v":5.8},{"$f":"E75","v":5.8}]
["Административные штрафы, установленные Главой 15 Кодекса Российской Федерации об административных правонарушениях, за административные правонарушения в области финансов, налогов и сборов, страхования, рынка ценных бумаг (за исключением штрафов, указанных в пункте 6 статьи 46 Бюджетного кодекса Российской Федерации), налагаемые мировыми судьями, комиссиями по делам несовершеннолетних и защите их прав","837","11601153010000140",5.8,5.8]
["Административные штрафы, установленные главой 17 Кодекса Российской Федерации об административных правонарушениях, за административные правонарушения, посягающие на институты государственной власти","837","11601170010000140",2.2000000000000002,2.2000000000000002]
["Административные штрафы, установленные главой 17 Кодекса Российской Федерации об административных правонарушениях, за административные правонарушения, посягающие на институты государственной власти, налагаемые мировыми судьями, комиссиями по делам несовершеннолетних и защите их прав","837","11601173010000140",2.2000000000000002,2.2000000000000002]
["Административные штрафы, установленные Главой 19 Кодекса Российской Федерации об административных правонарушениях, за административные правонарушения против порядка управления","837","11601190010000140",{"$f":"D79","v":51.9},{"$f":"E79","v":51.9}]
["Административные штрафы, установленные Главой 19 Кодекса Российской Федерации об административных правонарушениях, за административные правонарушения против порядка управления, налагаемые мировыми судьями, комиссиями по делам несовершеннолетних и защите их прав","837","11601193010000140",51.9,51.9]
["Административные штрафы, установленные Главой 20 Кодекса Российской Федерации об административных правонарушениях, за административные правонарушения, посягающие на общественный порядок и общественную безопасность","000","11601200010000140",{"$f":"D81+D82","v":33.700000000000003},{"$f":"E81+E82","v":33.799999999999997}]
["Административные штрафы, установленные Главой 20 Кодекса Российской Федерации об административных правонарушениях, за административные правонарушения, посягающие на общественный порядок и общественную безопасность, налагаемые мировыми судьями, комиссиями по делам несовершеннолетних и защите их прав","837","11601203010000140",33,33]
["Административные штрафы, установленные Главой 20 Кодекса Российской Федерации об административных правонарушениях, за административные правонарушения, посягающие на общественный порядок и общественную безопасность, налагаемые мировыми судьями, комиссиями по делам несовершеннолетних и защите их прав","806","11601203010000140",0.7,0.8]
["Денежные средства, изымаемые в собственность Российской Федерации, субъекта Российской Федерации, муниципального образования в соответствии с решениями судов (за исключением обвинительных приговоров судов)","994","11609000000000140",{"$f":"D84","v":9.1},{"$f":"E84","v":9.1}]
["Денежные средства, изымаемые в собственность муниципального района в соответствии с решениями судов (за исключением обвинительных приговоров судов)","994","11609040050000140",9.1,9.1]
["Платежи в целях возмещения причиненного ущерба (убытков)","000","11610000000000140",{"$f":"D88+D86","v":641.4},{"$f":"E88+E86","v":641.4}]
["Платежи по искам о возмещении ущерба, а также платежи, уплачиваемые при добровольном возмещении ущерба, причиненного муниципальному имуществу муниципального района (за исключением имущества, закрепленного за муниципальными бюджетными (автономными) учреждениями, унитарными предприятиями)","994","11610030050000140",{"$f":"D87","v":220.9},{"$f":"E87","v":220.9}]
["Прочее возмещение ущерба, причиненного муниципальному имуществу муниципального района (за исключением имущества, закрепленного за муниципальными бюджетными (автономными) учреждениями, унитарными предприятиями)","994","11610032050000140",220.9,220.9]
["Доходы от денежных взысканий (штрафов), поступающие в счет погашения задолженности, образовавшейся до 1 января 2020 года, подлежащие зачислению в бюджеты бюджетной системы Российской Федерации по нормативам, действовавшим в 2019 году","000","11610120000000140",{"$f":"D89","v":420.5},{"$f":"E89","v":420.5}]
["Доходы от денежных взысканий (штрафов), поступающие в счет погашения задолженности, образовавшейся до 1 января 2020 года, подлежащие зачислению в бюджет муниципального образования по нормативам, действовавшим в 2019 году","000","11610123010000140",{"$f":"D90+D91+D92","v":420.5},{"$f":"E90+E91+E92","v":420.5}]
["Доходы от денежных взысканий (штрафов), поступающие в счет погашения задолженности, образовавшейся до 1 января 2020 года, подлежащие зачислению в бюджет муниципального образования по нормативам, действовавшим в 2019 году","076","11610123010000140",5.5,5.5]
["Доходы от денежных взысканий (штрафов), поступающие в счет погашения задолженности, образовавшейся до 1 января 2020 года, подлежащие зачислению в бюджет муниципального образования по нормативам, действовавшим в 2019 году","806","11610123010000140",0.7,0.7]
["Доходы от денежных взысканий (штрафов), поступающие в счет погашения задолженности, образовавшейся до 1 января 2020 года, подлежащие зачислению в бюджет муниципального образования по нормативам, действовавшим в 2019 году","994","11610123010000140",414.3,414.3]
["Платежи, уплачиваемые в целях возмещения вреда","994","11611000010000140",{"$f":"D94","v":200},{"$f":"E94","v":200}]
["Платежи по искам о возмещении вреда, причиненного окружающей среде, а также платежи, уплачиваемые при добровольном возмещении вреда, причиненного окружающей среде (за исключением вреда, причиненного окружающей среде на особо охраняемых природных территориях, а также вреда, причиненного водным объектам), подлежащие зачислению в бюджет муниципального образования","994","11611050010000140",200,200]
["БЕЗВОЗМЕЗДНЫЕ ПОСТУПЛЕНИЯ","000","20000000000000000",{"$f":"D96","v":777357.1},{"$f":"E96","v":524939.69999999995}]
["Безвозмездные поступления от других бюджетов бюджетной системы Российской Федерации","000","20200000000000000",{"$f":"D97+D112+D100+D122","v":777357.1},{"$f":"E97+E112+E100+E122","v":524939.69999999995}]
["Дотации бюджетам бюджетной системы Российской Федерации","992","20210000000000150",{"$f":"D98","v":101628.5},{"$f":"E98","v":109733.5}]
["Дотации на выравнивание бюджетной обеспеченности","992","20215001000000150",{"$f":"D99","v":101628.5},{"$f":"E99","v":109733.5}]
["Дотации бюджетам муниципальных районов на выравнивание бюджетной обеспеченности из бюджета субъекта Российской Федерации","992","20215001050000150",101628.5,109733.5]
["Субсидии бюджетам бюджетной системы Российской Федерации (межбюджетные субсидии)","000","20220000000000150",{"$f":"D107+D101+D103+D105","v":325193.2},{"$f":"E107+E101+E103+E105","v":64902.200000000004}]
["Субсидии бюджетам на софинансирование капитальных вложений в объекты муниципальной собственности","994","20220077000000150",{"$f":"D102","v":232926.1},{"$f":"E102","v":0}]
["Субсидии бюджетам муниципальных районов на софинансирование капитальных вложений в объекты муниципальной собственности","994","20220077050000150",232926.1,0]
["Субсидии бюджетам на организацию бесплатного горячего питания обучающихся, получающих начальное общее образование в государственных и муниципальных образовательных организациях","973","20225304000000150",{"$f":"D104","v":6868.8},{"$f":"E104","v":6692.8}]
["Субсидии бюджетам муниципальных районов на организацию бесплатного горячего питания обучающихся, получающих начальное общее образование в государственных и муниципальных образовательных организациях","973","20225304050000150",6868.8,6692.8]
["Субсидии бюджетам на поддержку отрасли культуры","957","20225519000000150",{"$f":"D106","v":92.7},{"$f":"E106","v":92.8}]
["Субсидии бюджетам муниципальных районов на поддержку отрасли культуры","957","20225519050000150",92.7,92.8]
["Прочие субсидии","000","20229999000000150",{"$f":"D108","v":85305.600000000006},{"$f":"E108","v":58116.6}]
["Прочие субсидии бюджетам муниципальных районов","000","20229999050000150",{"$f":"D109+D110+D111","v":85305.600000000006},{"$f":"E109+E110+E111","v":58116.6}]
["Прочие субсидии бюджетам муниципальных районов","973","20229999050000150",11188.5,4276.8999999999996]
["Прочие субсидии бюджетам муниципальных районов","992","20229999050000150",29322.400000000001,29321.200000000001]
["Прочие субсидии бюджетам муниципальных районов","994","20229999050000150",44794.7,24518.5]
["Субвенции бюджетам бюджетной системы Российской Федерации","000","20230000000000150",{"$f":"D115+D121+D113","v":333685.89999999997},{"$f":"E115+E121+E113","v":333454.49999999994}]
["Субвенции бюджетам на осуществление полномочий по составлению (изменению) списков кандидатов в присяжные заседатели федеральных судов общей юрисдикции в Российской Федерации","994","20235120000000150",{"$f":"D114","v":0.1},{"$f":"E114","v":0.1}]
["Субвенции бюджетам муниципальных районов на осуществление полномочий по составлению (изменению) списков кандидатов в присяжные заседатели федеральных судов общей юрисдикции в Российской Федерации","994","20235120050000150",0.1,0.1]
["Субвенции местным бюджетам на выполнение передаваемых полномочий субъектов Российской Федерации","000","20230024000000150",{"$f":"D116","v":48235.5},{"$f":"E116","v":48004.1}]
["Субвенции бюджетам муниципальных районов на выполнение передаваемых полномочий субъектов Российской Федерации","000","20230024050000150",{"$f":"D117+D118+D119","v":48235.5},{"$f":"E117+E118+E119","v":48004.1}]
["Субвенции бюджетам муниципальных районов на выполнение передаваемых полномочий субъектов Российской Федерации","992","20230024050000150",38205,37973.599999999999]
["Субвенции бюджетам муниципальных районов на выполнение передаваемых полномочий субъектов Российской Федерации","973","20230024050000150",5945.1,5945.1]
["Субвенции бюджетам муниципальных районов на выполнение передаваемых полномочий субъектов Российской Федерации","994","20230024050000150",4085.4,4085.4]
["Прочие субвенции","973","20239999000000150",{"$f":"D121","v":285450.3},{"$f":"E121","v":285450.3}]
["Прочие субвенции бюджетам муниципальных районов","973","20239999050000150",285450.3,285450.3]
["Иные межбюджетные трансферты","973","20240000000000150",{"$f":"D123+D126+D127","v":16849.5},{"$f":"E123+E126+E127","v":16849.5}]
["Межбюджетные трансферты, передаваемые бюджетам муниципальных образований на осуществление части полномочий по решению вопросов местного значения в соответствии с заключенными соглашениями","992","20240014000000150",{"$f":"D124","v":1898.5},{"$f":"E124","v":1898.5}]
["Межбюджетные трансферты, передаваемые бюджетам муниципальных районов из бюджетов поселений на осуществление части полномочий по решению вопросов местного значения в соответствии с заключенными соглашениями","992","20240014050000150",1898.5,1898.5]
["Межбюджетные трансферты, передаваемые бюджетам на проведение мероприятий по обеспечению деятельности советников директора по воспитанию и взаимодействию с детскими общественными объединениями в общеобразовательных организациях","973","20245179000000150",{"$f":"D126","v":1241},{"$f":"E126","v":1241}]
["Межбюджетные трансферты, передаваемые бюджетам муниципальных районов на проведение мероприятий по обеспечению деятельности советников директора по воспитанию и взаимодействию с детскими общественными объединениями в общеобразовательных организациях","973","20245179050000150",1241,1241]
["Межбюджетные трансферты, передаваемые бюджетам на ежемесячное денежное вознаграждение за классное руководство педагогическим работникам государственных и муниципальных общеобразовательных организаций","973","20245303000000150",{"$f":"D128","v":13710},{"$f":"E128","v":13710}]
["Межбюджетные трансферты, передаваемые бюджетам муниципальных районов на ежемесячное денежное вознаграждение за классное руководство педагогическим работникам государственных и муниципальных общеобразовательных организаций","973","20245303050000150",13710,13710]
["Доходы бюджета - ИТОГО",null,null,{"$f":"D95+D9","v":833521.1},{"$f":"E95+E9","v":581213.6}]
[null,null,null,null,"\""]